fUSD/lending_fUSD_20251217
["ID","MTS","AMOUNT","RATE_DAILY","PERIOD"]
[398898866,1765977043741,-5837.13580651,0.00018233,2]
[398898867,1765977043755,-151.0,0.0001833,2]
[398898868,1765977043770,-164.05,0.00018333,2]
[398898869,1765977043786,-153.26,0.00018333,2]
[398898870,1765977043801,-1098.0,0.00018355,2]
[398898871,1765977043814,-503.84,0.00018356,7]
[398898872,1765977043829,-487.91144329,0.00018382,2]
[398898873,1765977043844,-480.88,0.00018382,2]
[398898874,1765977043858,-168.0,0.00018397,2]
[398898875,1765977043872,-692.961391,0.00018399,2]
[398898876,1765977043886,-5837.13580651,0.00018456,2]
[398898877,1765977043899,-503.94846606,0.00018486,2]
[398898878,1765977043913,-166.66,0.00018521,2]
[398898879,1765977043927,-1600.0,0.00018531,2]
[398898880,1765977043942,-200.0,0.00018542,2]
[398898881,1765977043957,-9236.54552179,0.00018546,2]
[398898882,1765977043972,-500.0,0.00018567,2]
[398898883,1765977043986,-151.04833314,0.00018586,2]
[398898884,1765977043999,-152.23,0.00018608,2]
[398898885,1765977044013,-152.0,0.0001861,3]
[398898886,1765977044028,-1000.0,0.00018612,2]
[398898887,1765977044041,-2000.0,0.00018616,2]
[398898888,1765977044055,-2000.0,0.00018616,2]
[398898889,1765977044069,-503.84,0.0001863,8]
[398898890,1765977044083,-5837.13580651,0.00018678,2]
[398898891,1765977044096,-168.0,0.00018696,2]
[398898892,1765977044110,-1000.0,0.0001876,2]
[398898893,1765977044124,-150.0,0.00018773,2]
[398898894,1765977044138,-500.0,0.00018773,2]
[398898895,1765977044152,-500.0,0.00018773,2]
[398898896,1765977044165,-569.87602686,0.00018773,2]
[398898897,1765977044178,-162.27451964,0.00018773,2]
[398898898,1765977044192,-500.0,0.00018773,2]
[398898899,1765977044206,-500.0,0.00018773,2]
[398898900,1765977044221,-500.0,0.00018773,2]
[398898901,1765977044234,-500.0,0.00018773,2]
[398898902,1765977044248,-500.0,0.00018773,2]
[398898903,1765977044262,-500.0,0.00018773,2]
[398898904,1765977044276,-500.0,0.00018773,2]
[398898905,1765977044289,-500.0,0.00018773,2]
[398898906,1765977044304,-178.93750453,0.00018773,2]
[398898907,1765977044317,-500.0,0.00018773,2]
[398898908,1765977044332,-500.0,0.00018773,2]
[398898909,1765977044347,-500.0,0.00018773,2]
[398898910,1765977044361,-500.0,0.00018773,2]
[398898911,1765977044374,-500.0,0.00018773,2]
[398898912,1765977044388,-500.0,0.00018773,2]
[398898913,1765977044403,-500.0,0.00018773,2]
[398898914,1765977044419,-500.0,0.00018773,2]
[398898915,1765977044432,-162.15907528,0.00018773,2]
[398898916,1765977044446,-500.0,0.00018773,2]
[398898917,1765977044459,-500.0,0.00018773,2]
[398898918,1765977044472,-500.0,0.00018773,2]
[398898919,1765977044484,-500.0,0.00018773,2]
[398898920,1765977044497,-500.0,0.00018773,2]
[398898921,1765977044510,-500.0,0.00018773,2]
[398898922,1765977044524,-500.0,0.00018773,2]
[398898923,1765977044536,-500.0,0.00018773,2]
[398898924,1765977044548,-500.0,0.00018773,2]
[398898925,1765977044561,-500.0,0.00018773,2]
[398898926,1765977044574,-516.08920416,0.00018773,2]
[398898927,1765977044586,-500.0,0.00018773,2]
[398898928,1765977044598,-500.0,0.00018773,2]
[398898929,1765977044611,-500.0,0.00018773,2]
[398898930,1765977044624,-500.0,0.00018773,2]
[398898931,1765977044636,-500.0,0.00018773,2]
[398898932,1765977044648,-500.0,0.00018773,2]
[398898933,1765977044661,-500.0,0.00018773,2]
[398898934,1765977044674,-500.0,0.00018773,2]
[398898935,1765977044688,-500.0,0.00018773,2]
[398898936,1765977044701,-500.0,0.00018773,2]
[398898937,1765977044714,-500.0,0.00018773,2]
[398898938,1765977044728,-500.0,0.00018773,2]
[398898939,1765977045291,-500.0,0.00018773,2]
[398898940,1765977045335,-500.0,0.00018773,2]
[398898941,1765977045367,-500.0,0.00018773,2]
[398898942,1765977045386,-500.0,0.00018773,2]
[398898943,1765977045395,-500.0,0.00018773,2]
[398898944,1765977045404,-500.0,0.00018773,2]
[398898945,1765977045413,-500.0,0.00018773,2]
[398898946,1765977045422,-168.0,0.00018789,2]
[398898947,1765977045432,-500.0,0.00018796,2]
[398898948,1765977045441,-150.91,0.000188,2]
[398898949,1765977045450,-150.91,0.000188,2]
[398898950,1765977045460,-150.91,0.000188,2]
[398898951,1765977045468,-503.0,0.00018822,2]
[398898952,1765977045478,-3562.85,0.00018822,2]
[398898953,1765977045487,-322.6107,0.00018886,2]
[398898954,1765977045495,-5837.13580651,0.000189,2]
[398898955,1765977045504,-9236.54552179,0.000189,2]
[398898956,1765977045513,-632.9394755,0.000189,2]
[398898957,1765977045522,-215.18509532,0.000189,2]
[398898958,1765977045531,-1631.5153797,0.000189,2]
[398898959,1765977045540,-503.84,0.00018904,9]
[398898960,1765977045550,-3457.53642493,0.00018904,2]
[398898961,1765977045559,-152.0,0.00018943,4]
[398898962,1765977045568,-500.0,0.0001897,2]
[398898963,1765977045577,-150.0,0.00018973,2]
[398898964,1765977045587,-163.30713897,0.00018973,2]
[398898965,1765977045596,-150.00000001,0.00018986,2]
[398898966,1765977045605,-468.97910059,0.00018989,2]
[398898967,1765977045617,-500.0,0.00018989,2]
[398898968,1765977045626,-514.58,0.00018989,2]
[398898969,1765977045636,-870.0,0.0001899,2]
[398898970,1765977045645,-151.0,0.00018997,2]
[398898971,1765977045655,-555.77,0.00018998,2]
[398898972,1765977045665,-500.0,0.00018999,2]
[398898973,1765977045674,-500.0,0.00018999,2]
[398898974,1765977045683,-500.0,0.00018999,2]
[398898975,1765977045692,-500.0,0.00018999,2]
[398898976,1765977045701,-500.0,0.00018999,2]
[398898977,1765977045710,-500.0,0.00018999,2]
[398898978,1765977045719,-500.0,0.00018999,2]
[398898979,1765977045728,-500.0,0.00018999,2]
[398898980,1765977045737,-500.0,0.00018999,2]
[398898981,1765977045746,-500.0,0.00018999,2]
[398898982,1765977045755,-500.0,0.00018999,2]
[398898983,1765977045765,-500.0,0.00018999,2]
[398898984,1765977045774,-500.0,0.00018999,2]
[398898985,1765977045787,-500.0,0.00018999,2]
[398898986,1765977045796,-500.0,0.00018999,2]
[398898987,1765977045806,-500.0,0.00018999,2]
[398898988,1765977045815,-500.0,0.00018999,2]
[398898989,1765977045824,-500.0,0.00018999,2]
[398898990,1765977045833,-500.0,0.00018999,2]
[398898991,1765977045842,-450.0,0.00018999,2]
[398898992,1765977045851,-14219.94442588,0.00018999,2]
[398898993,1765977045862,-3562.85,0.00018999,2]
[398898994,1765977045872,-3562.85,0.00018999,2]
[398898995,1765977045881,-3562.85,0.00018999,2]
[398898996,1765977045896,-3562.85,0.00018999,2]
[398898997,1765977045906,-3562.85,0.00018999,2]
[398898998,1765977045915,-3562.85,0.00018999,2]
[398898999,1765977045924,-3562.85,0.00018999,2]
[398899000,1765977045933,-3562.85,0.00018999,2]
[398899001,1765977045943,-3562.85319516,0.00018999,2]
[398899002,1765977045952,-5000.87956289,0.00019,2]
[398899003,1765977045961,-5145.0261529,0.00019,2]
[398899004,1765977045970,-2620958.47461882,0.00019,2]
[398899005,1765977047004,-250.08656543,0.00019,2]
[398899006,1765977047015,-2390.18186338,0.00019,2]
[398899007,1765977047024,-1000.0,0.00019,2]
[398899008,1765977047033,-15615.38941707,0.00019,2]
[398899009,1765977047384,-5778.20325848,0.00019,2]
[398899010,1765977047444,-2131.20171148,0.00019,2]
[398899011,1765977047455,-763.45759774,0.00019,2]
[398899012,1765977047466,-356.68236483,0.00019,2]
[398899013,1765977047476,-644.38,0.00019,2]
[398899014,1765977047487,-396.71618048,0.00019,2]
[398899015,1765977047505,-7878.16203475,0.00019,2]
[398899016,1765977047516,-523.34287504,0.00019,2]
[398899017,1765977047527,-427.39638274,0.00019,2]
[398899018,1765977047624,-160.66751828,0.00016438,2]
[398899019,1765977047634,-563.0,0.00017409,2]
[398899020,1765977047643,-4608.61913574,0.00019,2]
[398899021,1765977047654,-345.69,0.00019,2]
[398899022,1765977047692,-304284.11113536,0.00019,2]
[398899023,1765977047764,-436.86018137,0.00019,2]
[398899024,1765977047775,-549.03651592,0.00019,2]
[398899030,1765977301585,466.49,0.00022,30]
[398899033,1765977723710,5000.0,0.000155,3]
[398899034,1765977740997,-160.77,0.00011896,2]
[398899035,1765977758662,1582.0,0.00022,30]
[398899036,1765977759550,5130.0,0.000155,3]
[398899069,1765978194353,155.49,0.00022,30]
[398899076,1765978232057,-300.0,0.00013989,2]
[398899078,1765978232067,-300.0,0.00013989,2]
[398899079,1765978232076,-1200.0,0.00013989,2]
[398899080,1765978232086,-300.0,0.00013989,2]
[398899081,1765978232095,-9.64631498,0.0001399,2]
[398899082,1765978232108,-290.35368502,0.0001399,2]
[398899083,1765978232117,-509.64631498,0.0001399,2]
[398899084,1765978232129,-811.64281846,0.0001399,2]
[398899085,1765978232140,-1650.0,0.0001399,2]
[398899086,1765978232156,-2400.0,0.0001399,2]
[398899087,1765978232193,296.66,0.00014627,3]
[398899088,1765978232210,-5342.98275519,0.0001399,2]
[398899089,1765978232221,-300.0,0.00014602,2]
[398899090,1765978232230,-300.0,0.00014602,2]
[398899091,1765978232239,-300.0,0.00014602,2]
[398899092,1765978232248,-551.03,0.00014896,2]
[398899093,1765978232258,-4120.27966053,0.00015,2]
[398899094,1765978232268,-7129.86305583,0.00015,2]
[398899095,1765978232277,-843.69754822,0.00015,2]
[398899096,1765978232286,-300.0,0.00015136,2]
[398899097,1765978232296,-4533.35,0.00015137,2]
[398899098,1765978232313,-420.0,0.00015326,2]
[398899099,1765978232326,-420.0,0.00015326,2]
[398899100,1765978232337,-420.0,0.00015326,2]
[398899101,1765978232348,-300.0,0.00015388,2]
[398899102,1765978232358,-1680.0,0.00015388,2]
[398899103,1765978232368,-505.62829288,0.000154,2]
[398899104,1765978232379,-166.66,0.00015425,2]
[398899105,1765978232394,-546.95847503,0.00015506,2]
[398899107,1765978232404,-720.62426734,0.00015506,2]
[398899108,1765978232416,-935.94959309,0.00015517,2]
[398899109,1765978232425,-2161.23614305,0.00015591,2]
[398899110,1765978232434,-74239.24561568,0.00015594,2]
[398899111,1765978232447,-9951.07664541,0.00015594,2]
[398899112,1765978232460,-8151.831473,0.00015594,2]
[398899113,1765978232471,-15758.13844381,0.00015594,2]
[398899114,1765978232483,-2288.5120478,0.00015594,2]
[398899115,1765978232511,-279.26125715,0.00015594,2]
[398899120,1765978238148,-150.0,0.00014627,2]
[398899121,1765978238158,-14936.2485822,0.00015594,2]
[398899122,1765978238201,-634395.68593495,0.00015594,2]
[398899123,1765978238211,-226.46240275,0.000156,2]
[398899124,1765978238222,-2494.726,0.00015602,2]
[398899125,1765978238232,-266.79595356,0.00015602,2]
[398899126,1765978238242,-3338.7952,0.00015602,2]
[398899127,1765978238252,-532.0009,0.00015603,2]
[398899128,1765978238263,-150.99,0.00015606,2]
[398899129,1765978238273,-9999.99,0.00015606,2]
[398899130,1765978238283,-11178.1860096,0.00015606,2]
[398899131,1765978238293,-200.0,0.00015679,2]
[398899132,1765978238302,-200.0,0.00015694,2]
[398899133,1765978238312,-500.0,0.00015694,2]
[398899134,1765978238323,-500.0,0.00015694,2]
[398899136,1765978238333,-151.0,0.00015694,2]
[398899137,1765978238342,-500.0,0.00015694,2]
[398899138,1765978238353,-151.0,0.00015694,2]
[398899139,1765978238362,-500.0,0.00015694,2]
[398899140,1765978238376,-500.0,0.00015694,2]
[398899142,1765978238387,-151.0,0.00015694,2]
[398899144,1765978238398,-500.0,0.00015694,2]
[398899146,1765978238408,-151.0,0.00015694,2]
[398899148,1765978238417,-500.0,0.00015694,2]
[398899150,1765978238427,-151.0,0.00015694,2]
[398899151,1765978238437,-500.0,0.00015694,2]
[398899152,1765978238446,-151.0,0.00015694,2]
[398899153,1765978238455,-500.0,0.00015694,2]
[398899154,1765978238465,-151.0,0.00015694,2]
[398899155,1765978238474,-500.0,0.00015694,2]
[398899156,1765978238484,-200.0,0.00015694,2]
[398899157,1765978238494,-151.0,0.00015694,2]
[398899158,1765978238504,-291.8725158,0.00015694,2]
[398899159,1765978238513,-151.0,0.00015694,2]
[398899160,1765978238523,-151.0,0.00015694,2]
[398899161,1765978238533,-500.0,0.00015694,2]
[398899162,1765978238543,-153.63110906,0.00015694,2]
[398899164,1765978238553,-500.0,0.00015694,2]
[398899166,1765978238565,-500.0,0.00015694,2]
[398899167,1765978238575,-500.0,0.00015694,2]
[398899169,1765978238585,-500.0,0.00015694,2]
[398899170,1765978238594,-500.0,0.00015694,2]
[398899171,1765978238604,-500.0,0.00015694,2]
[398899172,1765978238613,-500.0,0.00015694,2]
[398899173,1765978238622,-500.0,0.00015694,2]
[398899174,1765978238631,-500.0,0.00015694,2]
[398899175,1765978238641,-500.0,0.00015694,2]
[398899176,1765978238650,-200.0,0.00015694,2]
[398899177,1765978238660,-500.0,0.00015694,2]
[398899178,1765978238669,-151.0,0.00015694,2]
[398899179,1765978238678,-151.0,0.00015694,2]
[398899180,1765978238690,-151.0,0.00015694,2]
[398899181,1765978238700,-151.0,0.00015694,2]
[398899182,1765978238710,-151.0,0.00015694,2]
[398899183,1765978238720,-500.0,0.00015694,2]
[398899184,1765978238730,-151.0,0.00015694,2]
[398899185,1765978238739,-151.0,0.00015694,2]
[398899186,1765978238750,-151.0,0.00015694,2]
[398899187,1765978238761,-151.0,0.00015694,2]
[398899188,1765978238770,-151.0,0.00015694,2]
[398899189,1765978238780,-151.0,0.00015694,2]
[398899190,1765978238789,-151.0,0.00015694,2]
[398899191,1765978238799,-955.65,0.00015697,2]
[398899192,1765978238809,-151.0,0.000157,2]
[398899193,1765978238819,-500.0,0.00015702,2]
[398899194,1765978238828,-500.0,0.00015702,2]
[398899195,1765978238838,-500.0,0.00015702,2]
[398899196,1765978238847,-500.0,0.00015702,2]
[398899197,1765978238857,-500.0,0.00015702,2]
[398899198,1765978238867,-500.0,0.00015702,2]
[398899199,1765978238876,-500.0,0.00015702,2]
[398899200,1765978238886,-500.0,0.00015702,2]
[398899201,1765978238896,-500.0,0.00015702,2]
[398899202,1765978238905,-500.0,0.00015702,2]
[398899203,1765978238915,-500.0,0.00015702,2]
[398899204,1765978238924,-500.0,0.00015702,2]
[398899205,1765978238934,-500.0,0.00015702,2]
[398899206,1765978238943,-500.0,0.00015702,2]
[398899207,1765978239484,-500.0,0.00015702,2]
[398899208,1765978239495,-500.0,0.00015702,2]
[398899209,1765978239504,-500.0,0.00015702,2]
[398899210,1765978239513,-266.50984946,0.00015702,2]
[398899211,1765978239523,-500.0,0.00015702,2]
[398899212,1765978239532,-500.0,0.00015702,2]
[398899213,1765978239541,-500.0,0.00015702,2]
[398899214,1765978239550,-500.0,0.00015702,2]
[398899215,1765978239559,-500.0,0.00015702,2]
[398899216,1765978239568,-500.0,0.00015702,2]
[398899217,1765978239577,-500.0,0.00015702,2]
[398899218,1765978239586,-500.0,0.00015702,2]
[398899219,1765978239595,-500.0,0.00015702,2]
[398899220,1765978239605,-500.0,0.00015703,2]
[398899221,1765978239614,-500.0,0.00015703,2]
[398899222,1765978239624,-500.0,0.00015703,2]
[398899223,1765978239633,-500.0,0.00015703,2]
[398899224,1765978239642,-208.55442295,0.00015703,2]
[398899225,1765978239651,-500.0,0.00015703,2]
[398899226,1765978239661,-500.0,0.00015703,2]
[398899227,1765978239672,-500.0,0.00015703,2]
[398899228,1765978239682,-500.0,0.00015703,2]
[398899229,1765978239692,-500.0,0.00015703,2]
[398899230,1765978239702,-500.0,0.00015703,2]
[398899231,1765978239713,-503.9543882,0.00015703,2]
[398899232,1765978239722,-500.0,0.00015703,2]
[398899233,1765978239733,-500.0,0.00015703,2]
[398899234,1765978239743,-514.77254056,0.00015703,2]
[398899235,1765978239753,-500.0,0.00015703,2]
[398899236,1765978239761,-500.0,0.00015703,2]
[398899237,1765978239771,-500.0,0.00015703,2]
[398899238,1765978239779,-500.0,0.00015703,2]
[398899239,1765978239790,-500.0,0.00015703,2]
[398899240,1765978239799,-500.0,0.00015703,2]
[398899241,1765978239808,-500.0,0.00015703,2]
[398899242,1765978239818,-500.0,0.00015703,2]
[398899243,1765978239827,-500.0,0.00015703,2]
[398899244,1765978239836,-500.0,0.00015703,2]
[398899245,1765978239845,-500.0,0.00015703,2]
[398899246,1765978239855,-500.0,0.00015703,2]
[398899247,1765978239865,-500.0,0.00015703,2]
[398899248,1765978239874,-500.0,0.00015703,2]
[398899249,1765978239883,-500.0,0.00015703,2]
[398899250,1765978239892,-500.0,0.00015703,2]
[398899251,1765978239903,-500.0,0.00015703,2]
[398899252,1765978239912,-500.0,0.00015703,2]
[398899253,1765978239922,-500.0,0.00015703,2]
[398899254,1765978239931,-500.0,0.00015703,2]
[398899255,1765978239940,-500.0,0.00015703,2]
[398899256,1765978239950,-500.0,0.00015703,2]
[398899257,1765978239960,-500.0,0.00015703,2]
[398899258,1765978239969,-500.0,0.00015703,2]
[398899259,1765978239978,-450.0,0.00015703,2]
[398899260,1765978239988,-500.0,0.00015703,2]
[398899261,1765978239997,-500.0,0.00015703,2]
[398899262,1765978240007,-500.0,0.00015703,2]
[398899263,1765978240016,-500.0,0.00015703,2]
[398899264,1765978240025,-500.0,0.00015703,2]
[398899265,1765978240035,-500.0,0.00015703,2]
[398899266,1765978240044,-500.0,0.00015703,2]
[398899267,1765978240054,-500.0,0.00015703,2]
[398899268,1765978240063,-279.99666033,0.00015703,2]
[398899269,1765978240072,-500.0,0.00015703,2]
[398899271,1765978240081,-500.0,0.00015703,2]
[398899273,1765978240100,-509.78781684,0.00015703,2]
[398899275,1765978240110,-510.6542677,0.00015703,2]
[398899277,1765978240119,-500.0,0.00015703,2]
[398899279,1765978240129,-500.0,0.00015703,2]
[398899280,1765978240138,-500.0,0.00015703,2]
[398899281,1765978240147,-500.0,0.00015703,2]
[398899282,1765978240157,-500.0,0.00015703,2]
[398899283,1765978240166,-500.0,0.00015703,2]
[398899284,1765978240175,-1000.0,0.00015703,2]
[398899285,1765978240184,-1000.0,0.00015703,2]
[398899286,1765978240194,-1000.0,0.00015703,2]
[398899287,1765978240203,-1000.0,0.00015703,2]
[398899288,1765978240213,-1000.0,0.00015703,2]
[398899289,1765978240223,-1000.0,0.00015703,2]
[398899290,1765978240232,-1000.0,0.00015703,2]
[398899291,1765978240242,-1000.0,0.00015703,2]
[398899292,1765978240251,-1000.0,0.00015703,2]
[398899293,1765978240261,-1000.0,0.00015703,2]
[398899294,1765978240271,-225.73772161,0.00015703,2]
[398899295,1765978240281,-500.0,0.00015703,2]
[398899296,1765978240291,-11178.18600956,0.0001575,2]
[398899297,1765978240300,-720.62426733,0.00015786,2]
[398899298,1765978240310,-500.0,0.00015806,2]
[398899299,1765978240320,-207.92024004,0.00015806,2]
[398899300,1765978240329,-1781.42,0.00015806,2]
[398899301,1765978240338,-1781.42,0.00015806,2]
[398899302,1765978240348,-1781.42,0.00015806,2]
[398899303,1765978240357,-500.0,0.00015806,2]
[398899304,1765978240366,-500.0,0.00015806,2]
[398899305,1765978240375,-500.0,0.00015806,2]
[398899306,1765978240384,-500.0,0.00015806,2]
[398899307,1765978240398,-500.0,0.00015806,3]
[398899308,1765978240407,-500.0,0.00015806,4]
[398899309,1765978240416,-500.0,0.00015806,2]
[398899310,1765978240427,-500.0,0.00015806,2]
[398899311,1765978240436,-11178.18600956,0.00015894,2]
[398899312,1765978240446,-166.66,0.00015934,2]
[398899313,1765978240455,-601.93844556,0.00015961,2]
[398899314,1765978240464,-955.65,0.00015971,2]
[398899315,1765978240473,-500.0,0.00015977,2]
[398899316,1765978240482,-261.19721547,0.0001599,2]
[398899317,1765978240491,-11112.25512909,0.00016,2]
[398899318,1765978240501,-144870.2598396,0.00016,2]
[398899319,1765978240510,-124521.48581454,0.00016,4]
[398899320,1765978240520,-11178.18600956,0.00016038,2]
[398899321,1765978240530,-720.62426733,0.00016066,2]
[398899322,1765978240540,-247.0,0.00016108,2]
[398899323,1765978240550,-9999.99,0.00016116,2]
[398899324,1765978240563,-500.0,0.00016155,2]
[398899325,1765978240573,-500.0,0.00016155,2]
[398899326,1765978240583,-210438.35973317,0.00016156,2]
[398899328,1765978240593,-192.0,0.00016166,2]
[398899330,1765978240603,-1369.0,0.00016171,2]
[398899331,1765978240612,-11178.18600956,0.00016182,2]
[398899332,1765978240622,-5000.00132069,0.000162,5]
[398899333,1765978240633,-164.05,0.00016205,2]
[398899334,1765978240643,-200.0,0.00016242,2]
[398899336,1765978240653,-200.0,0.00016242,2]
[398899337,1765978240663,-500.0,0.00016242,2]
[398899338,1765978240673,-955.65,0.00016245,2]
[398899339,1765978240683,-500.0,0.00016251,2]
[398899340,1765978240692,-510.0,0.00016256,2]
[398899341,1765978240702,-553.64373807,0.00016307,2]
[398899342,1765978240712,-300.0,0.00016307,2]
[398899343,1765978240722,-620.0,0.00016307,2]
[398899344,1765978240731,-2112.0,0.00016307,2]
[398899345,1765978240741,-11178.18600956,0.00016326,2]
[398899346,1765978240750,-1781.42,0.00016351,2]
[398899347,1765978240759,-500.0,0.00016351,5]
[398899348,1765978240769,-346.7483301,0.00016385,2]
[398899349,1765978240779,-500.0,0.00016436,2]
[398899350,1765978240789,-500.0,0.00016437,2]
[398899351,1765978240799,-500.0,0.00016438,2]
[398899352,1765978240808,-500.0,0.00016438,2]
[398899353,1765978240818,-500.0,0.00016438,2]
[398899354,1765978240828,-500.0,0.00016438,2]
[398899355,1765978240838,-500.0,0.00016438,2]
[398899356,1765978240851,-500.0,0.00016438,2]
[398899357,1765978240861,-500.0,0.00016438,2]
[398899358,1765978240871,-500.0,0.00016438,2]
[398899359,1765978240881,-500.0,0.00016438,2]
[398899360,1765978240891,-500.0,0.00016438,2]
[398899361,1765978240900,-500.0,0.00016438,2]
[398899362,1765978240910,-500.0,0.00016438,2]
[398899363,1765978240920,-500.0,0.00016438,2]
[398899364,1765978240930,-500.0,0.00016438,2]
[398899365,1765978240940,-500.0,0.00016438,2]
[398899366,1765978240949,-500.0,0.00016438,2]
[398899367,1765978240959,-500.0,0.00016438,2]
[398899368,1765978240971,-500.0,0.00016438,2]
[398899369,1765978240981,-500.0,0.00016438,2]
[398899370,1765978240991,-500.0,0.00016438,2]
[398899371,1765978241001,-500.0,0.00016438,2]
[398899372,1765978241011,-500.0,0.00016438,2]
[398899373,1765978241021,-500.0,0.00016438,2]
[398899374,1765978241035,-500.0,0.00016438,2]
[398899375,1765978241045,-500.0,0.00016438,2]
[398899376,1765978241056,-500.0,0.00016438,2]
[398899377,1765978241066,-500.0,0.00016438,2]
[398899378,1765978241077,-500.0,0.00016438,2]
[398899379,1765978241087,-500.0,0.00016438,2]
[398899380,1765978241098,-500.0,0.00016438,2]
[398899381,1765978241107,-500.0,0.00016438,2]
[398899382,1765978241117,-500.0,0.00016438,2]
[398899383,1765978241127,-303.38053942,0.00016438,2]
[398899384,1765978241137,-500.0,0.00016438,2]
[398899385,1765978241147,-500.0,0.00016438,2]
[398899386,1765978241156,-500.0,0.00016438,2]
[398899387,1765978241166,-500.0,0.00016438,2]
[398899388,1765978241176,-500.0,0.00016438,2]
[398899389,1765978241186,-500.0,0.00016438,2]
[398899390,1765978241196,-500.0,0.00016438,2]
[398899391,1765978241206,-500.0,0.00016438,2]
[398899392,1765978241216,-500.0,0.00016438,2]
[398899393,1765978241230,-500.0,0.00016438,2]
[398899394,1765978241240,-500.0,0.00016438,2]
[398899395,1765978241251,-500.0,0.00016438,2]
[398899396,1765978241260,-500.0,0.00016438,2]
[398899397,1765978241270,-500.0,0.00016438,2]
[398899398,1765978241282,-500.0,0.00016438,2]
[398899399,1765978241293,-500.0,0.00016438,2]
[398899400,1765978241305,-600.0,0.00016438,2]
[398899401,1765978241315,-500.0,0.00016438,2]
[398899402,1765978241325,-500.0,0.00016438,2]
[398899403,1765978241334,-500.0,0.00016438,2]
[398899404,1765978241344,-500.0,0.00016438,2]
[398899405,1765978241354,-500.0,0.00016438,2]
[398899406,1765978241365,-300.0,0.00016438,2]
[398899407,1765978241375,-300.0,0.00016438,2]
[398899408,1765978241386,-300.0,0.00016438,2]
[398899409,1765978241400,-300.0,0.00016438,2]
[398899410,1765978241410,-300.0,0.00016438,2]
[398899411,1765978241420,-300.0,0.00016438,2]
[398899412,1765978241435,-300.0,0.00016438,2]
[398899413,1765978241445,-300.0,0.00016438,2]
[398899414,1765978241455,-300.0,0.00016438,2]
[398899415,1765978241466,-300.0,0.00016438,2]
[398899416,1765978241476,-300.0,0.00016438,2]
[398899417,1765978241486,-300.0,0.00016438,2]
[398899418,1765978241497,-300.0,0.00016438,2]
[398899419,1765978241507,-300.0,0.00016438,2]
[398899420,1765978241517,-300.0,0.00016438,2]
[398899421,1765978241527,-300.0,0.00016438,2]
[398899422,1765978241537,-300.0,0.00016438,2]
[398899423,1765978241547,-300.0,0.00016438,2]
[398899424,1765978241558,-300.0,0.00016438,2]
[398899425,1765978241569,-300.0,0.00016438,2]
[398899426,1765978241579,-300.0,0.00016438,2]
[398899427,1765978241589,-300.0,0.00016438,2]
[398899428,1765978241599,-197.26900433,0.00016438,2]
[398899429,1765978241609,-500.0,0.00016438,2]
[398899430,1765978241621,-500.0,0.00016438,2]
[398899431,1765978241631,-500.0,0.00016438,2]
[398899432,1765978241640,-500.0,0.00016438,2]
[398899433,1765978241651,-500.0,0.00016438,2]